bitfinex-derivatives/quotes_SOLF0:USTF0_20241127
["timestamp","ask_amount","ask_price","bid_price","bid_amount"]
[1732741066856,2.0638,241.9,241.8,4.3446]
[1732741067050,15.75779462,241.93,241.8,4.3446]
[1732741067358,2.0638,241.89,241.8,2.28]
[1732741067553,15.75779462,241.93,241.8,2.28]
[1732741068655,2.0638,241.9,241.8,2.28]
[1732741068849,15.75779462,241.93,241.8,2.28]
[1732741069252,2.0639,241.89,241.8,2.28]
[1732741069453,15.75779462,241.93,241.8,2.28]
[1732741069649,15.75779462,241.93,241.81,2.0645]
[1732741069854,2.0637,241.91,241.81,2.0645]
[1732741070251,15.75779462,241.93,241.81,2.0645]
[1732741070456,2.0638,241.9,241.81,2.0645]
[1732741070652,2.0638,241.9,241.8,2.28]
[1732741070853,2.0636,241.92,241.8,2.28]
[1732741071156,0.57509,241.94,241.8,2.28]
[1732741072061,2.0635,241.93,241.84,2.0642]
[1732741072256,2.0635,241.93,241.8,2.28]
[1732741072463,0.57509,241.94,241.8,2.28]
[1732741072651,2.0636,241.92,241.83,2.0643]
[1732741073052,0.57509,241.94,241.82,2.0644]
[1732741073053,2.0637,241.91,241.82,2.0644]
[1732741073457,2.0637,241.91,241.8,2.28]
[1732741073656,2.0637,241.91,241.81,2.0644]
[1732741074361,2.0637,241.9,241.81,2.0644]
[1732741075059,2.0638,241.89,241.81,2.0644]
[1732741075267,15.75779462,241.89,241.71,2.5164]
[1732741075465,15.75779462,241.89,241.72,2.28]
[1732741075764,15.75779462,241.89,241.69,2.599]
[1732741075765,15.75779462,241.85,241.69,2.599]
[1732741075963,7.6048,241.84,241.73,2.28]
[1732741076159,2.0649,241.76,241.71,2.28]
[1732741076468,2.0649,241.76,241.7,2.28]
[1732741077061,15.75779462,241.81,241.7,2.28]
[1732741077966,2.065,241.76,241.7,2.28]
[1732741078161,7.6048,241.84,241.7,2.28]
[1732741080361,7.6048,241.84,241.68,15.75779462]
[1732741080669,7.6048,241.84,241.69,2.28]
[1732741080865,7.6048,241.84,241.73,2.0651]
[1732741080866,2.0644,241.82,241.73,2.0651]
[1732741081263,2.0645,241.81,241.73,2.0652]
[1732741081468,7.6048,241.84,241.69,2.28]
[1732741081863,2.0648,241.78,241.69,2.28]
[1732741082073,7.6048,241.84,241.69,2.28]
[1732741082374,23.36259462,241.84,241.69,2.28]
[1732741082569,2.0649,241.77,241.69,2.28]
[1732741083069,23.36259462,241.84,241.64,15.75779462]
[1732741083266,15.75779462,241.8,241.65,2.28]
[1732741083965,15.75779462,241.8,241.62,2.5495]
[1732741084169,15.75779462,241.8,241.63,2.28]
[1732741085078,2.065,241.75,241.67,2.0657]
[1732741085875,15.75779462,241.8,241.64,2.066]
[1732741086172,15.75779462,241.8,241.65,2.28]
[1732741086472,15.75779462,241.8,241.65,4.3458]
[1732741088172,9.85148903,241.79,241.65,2.28]
[1732741088376,9.85148903,241.79,241.67,2.0657]
[1732741088575,9.85148903,241.79,241.65,2.28]
[1732741089073,2.0655,241.7,241.61,2.0662]
[1732741089276,2.0655,241.7,241.62,2.28]
[1732741089472,9.85148903,241.72,241.56,19.21763139]
[1732741089673,2.0658,241.66,241.6,2.28]
[1732741091074,9.85148903,241.68,241.6,2.28]
[1732741091781,7.6886,241.69,241.6,2.28]
[1732741091976,2.0659,241.66,241.6,2.28]
[1732741093177,2.0661,241.63,241.54,2.0667]
[1732741093375,9.85148903,241.65,241.55,2.28]
[1732741093570,7.6886,241.69,241.55,2.28]
[1732741093571,9.85148903,241.68,241.55,2.28]
[1732741093772,7.6886,241.69,241.55,2.28]
[1732741093976,7.6886,241.69,241.57,9.85148903]
[1732741094376,9.7541,241.69,241.6,2.0663]
[1732741094680,9.7541,241.69,241.61,2.28]
[1732741095077,7.6886,241.69,241.61,2.28]
[1732741096076,2.0656,241.68,241.61,2.28]
[1732741097075,7.6886,241.69,241.61,2.28]
[1732741097076,2.0657,241.67,241.61,2.28]
[1732741097279,7.6886,241.69,241.61,2.28]
[1732741098574,9.7542,241.69,241.61,2.28]
[1732741098780,7.6886,241.69,241.61,2.28]
[1732741098977,2.0658,241.66,241.61,2.28]
[1732741099377,7.6886,241.69,241.61,2.28]
[1732741099578,2.0659,241.64,241.54,9.85148903]
[1732741099783,9.85148903,241.68,241.55,2.28]
[1732741100285,2.066,241.63,241.55,4.3466]
[1732741100983,2.066,241.63,241.55,2.28]
[1732741101283,2.066,241.63,241.56,2.0666]
[1732741101685,2.0661,241.62,241.55,4.3467]
[1732741103888,2.0661,241.62,241.55,2.28]
[1732741104188,2.0661,241.62,241.56,2.0666]
[1732741104389,9.85148903,241.68,241.55,2.28]
[1732741104687,9.85148903,241.68,241.55,4.3467]
[1732741105188,9.85148903,241.68,241.55,2.28]
[1732741106084,9.85148903,241.68,241.56,2.0666]
[1732741106285,7.6886,241.69,241.57,9.85148903]
[1732741107286,2.0657,241.67,241.57,9.85148903]
[1732741107485,2.0657,241.67,241.6,2.0663]
[1732741107682,2.0657,241.67,241.61,2.28]
[1732741108782,0.90683,241.76,241.61,2.28]
[1732741109383,2.0653,241.72,241.65,2.0658]
[1732741109586,0.90683,241.76,241.61,2.28]
[1732741111087,2.0654,241.71,241.64,2.0659]
[1732741111689,9.85148903,241.73,241.61,2.28]
[1732741112388,2.0655,241.7,241.62,2.066]
[1732741112786,2.0655,241.7,241.61,2.28]
[1732741112985,9.85148903,241.73,241.61,2.28]
[1732741113193,10.75831903,241.76,241.61,2.28]
[1732741113398,0.90683,241.76,241.63,9.85148903]
[1732741113686,2.0652,241.73,241.63,9.85148903]
[1732741113885,0.90683,241.76,241.66,2.0657]
[1732741114095,0.90683,241.76,241.67,2.28]
[1732741114791,2.0651,241.74,241.67,4.3456]
[1732741115093,2.0652,241.73,241.67,2.28]
[1732741116091,2.0652,241.73,241.67,4.3456]
[1732741116695,0.90683,241.76,241.67,2.28]
[1732741116897,0.90683,241.76,241.73,9.85148903]
[1732741117194,12.40998903,241.9,241.74,2.28]
[1732741117497,2.5585,241.9,241.78,9.85148903]
[1732741117690,2.5406,241.92,241.78,9.85148903]
[1732741117890,2.5406,241.92,241.81,9.85148903]
[1732741118090,9.85148903,241.97,241.82,2.28]
[1732741118994,2.0636,241.92,241.84,2.0642]
[1732741119296,9.85148903,241.94,241.82,2.28]
[1732741119497,2.0638,241.89,241.82,2.28]
[1732741120193,9.85148903,241.91,241.82,2.28]
[1732741121499,2.0638,241.9,241.82,2.28]
[1732741121798,9.85148903,241.91,241.82,2.28]
[1732741121996,11.91518903,241.91,241.82,2.28]
[1732741122197,2.5406,241.98,241.82,2.28]
[1732741122198,9.85148903,241.94,241.82,2.28]
[1732741122394,9.85148903,241.97,241.82,2.28]
[1732741122695,2.0633,241.96,241.86,2.064]
[1732741122897,9.85148903,241.97,241.82,2.28]
[1732741123490,2.0634,241.94,241.85,2.0641]
[1732741123895,9.85148903,241.97,241.85,2.0641]
[1732741124099,2.0639,241.89,241.82,2.28]
[1732741125196,2.0637,241.9,241.82,2.28]
[1732741125399,9.85148903,241.93,241.82,2.28]
[1732741126601,9.85148903,241.9,241.83,2.28]
[1732741126794,2.0639,241.88,241.82,2.28]
[1732741127099,2.0639,241.88,241.81,2.28]
[1732741127293,11.91528903,241.9,241.82,2.0644]
[1732741128800,11.91528903,241.9,241.81,2.28]
[1732741129200,2.0639,241.88,241.81,2.28]
[1732741129702,2.0639,241.88,241.72,0.57427]
[1732741129703,2.065,241.76,241.72,0.57427]
[1732741129897,9.85148903,241.82,241.72,0.57427]
[1732741130298,2.065,241.75,241.72,0.57427]
[1732741130798,9.85148903,241.82,241.72,0.57427]
[1732741130998,2.0647,241.78,241.72,0.57427]
[1732741131195,2.28,241.84,241.72,0.57427]
[1732741131400,2.0647,241.79,241.72,0.57427]
[1732741131596,2.28,241.84,241.72,0.57427]
[1732741131999,7.468,241.87,241.72,0.57427]
[1732741132596,2.0642,241.85,241.72,0.57427]
[1732741132801,7.468,241.87,241.72,0.57427]
[1732741132993,2.0643,241.83,241.74,2.065]
[1732741133199,2.0643,241.83,241.75,2.28]
[1732741134004,7.468,241.87,241.75,2.28]
[1732741134005,2.0645,241.81,241.75,2.28]
[1732741134211,7.468,241.87,241.75,2.28]
[1732741134212,9.85148903,241.83,241.75,2.28]
[1732741134702,2.0645,241.82,241.75,2.28]
[1732741135001,9.85148903,241.86,241.75,2.28]
[1732741135200,7.468,241.87,241.75,2.28]
[1732741135405,2.0642,241.85,241.76,2.0648]
[1732741135807,7.468,241.87,241.76,2.0648]
[1732741136403,2.0643,241.84,241.76,2.0648]
[1732741136605,7.468,241.87,241.76,2.0648]
[1732741137205,7.468,241.87,241.75,2.28]
[1732741137407,2.0643,241.83,241.75,4.345]
[1732741137606,2.0643,241.83,241.75,2.28]
[1732741139011,2.0643,241.83,241.76,2.0649]
[1732741139411,2.0644,241.82,241.76,2.0649]
[1732741139815,7.468,241.87,241.76,2.0649]
[1732741140307,7.468,241.87,241.75,2.28]
[1732741141209,9.85148903,241.79,241.52,4.21635357]
[1732741141410,9.85148903,241.76,241.6,9.85148903]
[1732741141614,9.85148903,241.73,241.61,2.28]
[1732741141815,5.1876,241.75,241.61,2.28]
[1732741142113,5.1876,241.75,241.65,0.46384]
[1732741143211,2.0651,241.74,241.66,2.0657]
[1732741143407,9.85148903,241.74,241.67,2.28]
[1732741143813,5.1876,241.75,241.67,2.28]
[1732741144408,9.85148903,241.79,241.67,2.28]
[1732741145008,12.13148903,241.82,241.67,2.28]
[1732741145213,9.85148903,241.74,241.65,0.46384]
[1732741145415,7.4405,241.73,241.65,0.46384]
[1732741146102,2.28,241.82,241.65,0.46384]
[1732741146305,12.47978903,241.81,241.66,2.28]
[1732741146506,7.5059,241.81,241.66,12.13148903]
[1732741146711,7.5059,241.81,241.7,9.85148903]
[1732741146909,2.28,241.96,241.74,9.85148903]
[1732741147105,7.3711,241.95,241.82,9.85148903]
[1732741147311,7.3711,241.95,241.83,2.28]
[1732741147506,7.3711,241.95,241.86,9.85148903]
[1732741147707,7.3711,241.95,241.87,2.28]
[1732741147905,28.62606238,242.08,241.9,9.85148903]
[1732741148114,2.0625,242.05,241.94,9.85148903]
[1732741148424,9.85148903,242.06,241.9,9.85148903]
[1732741148609,7.5216,242.07,241.94,9.85148903]
[1732741148812,7.5216,242.07,241.95,2.28]
[1732741150911,23.24308784,242.07,241.95,2.28]
[1732741151715,2.28,242.06,241.95,2.28]
[1732741152519,2.0626,242.03,241.95,2.28]
[1732741152720,2.28,242.06,241.95,2.28]
[1732741153310,2.0627,242.02,241.95,2.28]
[1732741153821,2.0628,242.01,241.95,2.28]
[1732741154024,2.28,242.06,241.95,2.28]
[1732741154713,2.0627,242.02,241.91,4.3436]
[1732741154914,2.28,242.06,241.91,2.28]
[1732741155312,7.5216,242.07,241.91,2.28]
[1732741155515,2.4935,242.07,241.93,15.72148784]
[1732741155717,15.72148784,242.17,241.97,15.72148784]
[1732741155913,2.0621,242.1,241.99,2.0629]
[1732741156118,2.0621,242.1,241.98,2.28]
[1732741156119,15.72148784,242.17,241.98,2.28]
[1732741156318,15.72148784,242.17,241.98,4.8466]
[1732741156511,2.0615,242.16,242.01,15.72148784]
[1732741156716,15.72148784,242.21,242.01,15.72148784]
[1732741156916,15.72148784,242.21,242.02,2.28]
[1732741157118,2.0614,242.17,242.06,2.0623]
[1732741157421,23.26838784,242.27,242.06,15.72148784]
[1732741157611,15.72148784,242.23,242.02,18.00148784]
[1732741157814,23.26838784,242.27,242.06,15.72148784]
[1732741158014,23.26838784,242.27,242.02,18.00148784]
[1732741158527,15.72148784,242.18,242.02,2.28]
[1732741158816,15.72148784,242.14,242.02,2.28]
[1732741159019,15.72148784,242.14,241.98,2.28]
[1732741159020,15.72148784,242.1,241.98,2.28]
[1732741159222,2.0625,242.05,241.97,2.28]
[1732741159413,15.72148784,242.1,241.97,2.28]
[1732741159820,7.542,242.13,241.97,2.28]
[1732741160323,7.542,242.13,241.86,7.8612]
[1732741160518,15.72148784,242.09,241.88,15.72148784]
[1732741160724,15.72148784,242.09,241.87,2.44]
[1732741160725,23.26348784,242.13,241.92,15.72148784]
[1732741161027,2.0623,242.07,241.97,2.0631]
[1732741161317,23.26348784,242.13,241.98,2.44]
[1732741161522,23.26348784,242.13,241.92,15.72148784]
[1732741161523,23.26348784,242.13,241.99,2.44]
[1732741161724,23.26348784,242.13,242.0,2.44]
[1732741161923,2.0623,242.07,242.01,2.44]
[1732741162119,7.542,242.13,242.01,2.44]
[1732741162527,2.0622,242.08,242.01,2.44]
[1732741162921,7.542,242.13,242.01,2.44]
[1732741163124,9.6038,242.13,242.02,2.0627]
[1732741163428,7.542,242.13,242.01,2.44]
[1732741163627,2.0619,242.12,242.03,2.0626]
[1732741163825,7.542,242.13,242.01,2.44]
[1732741164527,23.26348784,242.13,242.01,2.44]
[1732741164922,2.0624,242.06,242.01,2.44]
[1732741165224,7.542,242.13,242.01,2.44]
[1732741165526,15.72148784,242.09,241.98,2.44]
[1732741166324,15.72148784,242.09,241.96,1.25794]
[1732741166525,2.0626,242.03,241.96,1.25794]
[1732741167222,15.72148784,242.09,241.96,1.25794]
[1732741167423,2.5533,242.02,241.92,2.44]
[1732741167625,18.22478784,242.01,241.88,2.44]
[1732741167819,2.0638,241.89,241.87,2.44]
[1732741168031,15.72148784,241.96,241.82,2.44]
[1732741168334,15.72148784,241.96,241.83,2.44]
[1732741168527,15.72148784,241.96,241.84,2.44]
[1732741168729,15.72148784,242.0,241.84,2.44]
[1732741169621,2.5033,242.01,241.84,18.16148784]
[1732741169821,15.72148784,242.12,241.88,15.72148784]
[1732741170025,5.194,242.09,241.88,15.72148784]
[1732741170224,5.194,242.09,241.92,15.72148784]
[1732741170428,2.0624,242.06,241.97,2.0631]
[1732741170630,5.194,242.09,241.98,2.44]
[1732741171329,15.72148784,242.08,241.85,7.4547]
[1732741171528,15.72148784,242.04,241.86,2.44]
[1732741172135,2.44,242.08,241.86,2.44]
[1732741172136,15.72148784,242.0,241.86,2.44]
[1732741172337,15.72148784,242.0,241.87,2.44]
[1732741172534,5.194,242.09,241.84,2.44]
[1732741172535,15.72148784,241.96,241.84,2.44]
[1732741172730,2.0639,241.89,241.84,2.44]
[1732741173032,7.6149,241.95,241.84,2.44]
[1732741175144,7.6149,241.95,241.83,2.44]
[1732741175636,2.0637,241.9,241.83,2.44]
[1732741176834,7.6149,241.95,241.83,2.44]
[1732741177635,2.0637,241.91,241.83,2.44]
[1732741177842,7.6149,241.95,241.83,4.5043]
[1732741178046,7.6149,241.95,241.83,2.44]
[1732741178344,15.72148784,242.04,241.83,18.16148784]
[1732741178550,15.72148784,242.08,241.91,2.0636]
[1732741178845,15.72148784,242.08,241.92,2.44]
[1732741179039,15.72148784,242.08,241.93,2.44]
[1732741179241,2.0622,242.09,241.91,15.72148784]
[1732741179446,15.72148784,242.14,241.98,2.063]
[1732741179639,15.72148784,242.14,241.99,2.44]
[1732741179845,2.0621,242.09,242.0,2.44]
[1732741180039,15.72148784,242.14,241.89,2.492]
[1732741180040,15.72148784,242.14,242.02,2.0627]
[1732741180244,15.72148784,242.14,242.03,2.44]
[1732741180449,2.5582,242.13,242.03,2.44]
[1732741182047,2.0621,242.09,242.03,2.44]
[1732741182443,2.5582,242.13,242.03,2.44]
[1732741183448,15.72148784,242.1,242.03,2.44]
[1732741183646,2.0624,242.06,242.03,2.44]
[1732741183847,4.9982,242.13,241.97,2.44]
[1732741184045,15.72148784,242.09,241.89,2.492]
[1732741184350,15.72148784,242.09,241.9,2.44]
[1732741184650,15.72148784,242.05,241.9,2.44]
[1732741184845,15.72148784,242.05,241.76,2.71509407]
[1732741185043,2.44,242.07,241.77,2.44]
[1732741185044,15.72148784,241.97,241.77,2.44]
[1732741185350,15.72148784,241.97,241.82,2.0644]
[1732741185351,2.0635,241.93,241.82,2.0644]
[1732741185547,5.0649,241.96,241.82,2.0644]
[1732741185746,5.0649,241.96,241.77,2.44]
[1732741185747,7.554,241.96,241.77,2.44]
[1732741186439,2.0637,241.9,241.8,2.0645]
[1732741186640,7.554,241.96,241.8,2.0645]
[1732741186848,2.0637,241.9,241.8,2.0645]
[1732741187052,2.0637,241.9,241.77,2.44]
[1732741187349,7.554,241.96,241.77,2.44]
[1732741187652,2.0638,241.9,241.77,2.44]
[1732741188153,2.0639,241.89,241.79,2.0646]
[1732741188353,7.554,241.96,241.77,2.44]
[1732741188646,15.72148784,241.93,241.77,2.44]
[1732741188852,7.554,241.96,241.77,2.44]
[1732741189651,2.0637,241.9,241.81,2.0644]
[1732741189849,7.554,241.96,241.78,15.72148784]
[1732741190251,7.554,241.96,241.77,2.44]
[1732741190956,7.554,241.96,241.81,2.0645]
[1732741191155,7.554,241.96,241.77,2.44]
[1732741192351,2.0637,241.9,241.81,2.0644]
[1732741192647,2.0637,241.9,241.77,2.44]
[1732741192648,15.72148784,241.93,241.77,2.44]
[1732741193253,15.72148784,241.93,241.78,2.5]
[1732741193448,15.72148784,241.93,241.79,2.5]
[1732741193946,15.72148784,241.89,241.69,5.2666]
[1732741194146,15.72148784,241.89,241.7,2.5]
[1732741194350,18.22148784,241.89,241.7,2.5]
[1732741194746,2.0644,241.83,241.74,2.0651]
[1732741194947,18.22148784,241.89,241.74,2.0651]
[1732741195246,18.22148784,241.89,241.7,2.5]
[1732741195247,15.72148784,241.85,241.7,2.5]
[1732741195448,7.8076,241.84,241.7,2.5]
[1732741195949,2.0644,241.82,241.73,2.0652]
[1732741196148,7.8076,241.84,241.7,2.5]
[1732741197350,2.5,241.9,241.7,2.5]
[1732741197351,15.72148784,241.88,241.7,2.5]
[1732741197654,2.0645,241.81,241.74,2.0651]
[1732741198346,23.06168784,241.88,241.7,4.5654]
[1732741198347,2.0649,241.77,241.7,4.5654]
[1732741198750,2.0649,241.77,241.7,2.5]
[1732741198952,7.3402,241.88,241.7,2.5]
[1732741198953,23.06168784,241.88,241.7,2.5]
[1732741199151,7.3402,241.88,241.7,2.5]
[1732741199452,2.0643,241.84,241.76,2.0649]
[1732741199647,2.0643,241.84,241.77,2.5]
[1732741199847,7.3402,241.88,241.77,2.5]
[1732741200047,9.4041,241.88,241.8,2.0646]
[1732741200349,15.72148784,241.96,241.77,18.22148784]
[1732741200555,15.72148784,241.96,241.78,4.9008]
[1732741201148,15.72148784,241.92,241.77,2.5]
[1732741201750,15.72148784,241.88,241.77,2.5]
[1732741202251,2.4747,241.87,241.77,2.5]
[1732741202852,2.4747,241.87,241.77,4.5648]
[1732741203150,2.4747,241.87,241.77,2.5]
[1732741204056,7.6666,241.87,241.77,2.5]
[1732741204449,7.6666,241.87,241.74,2.7]
[1732741204655,7.6666,241.87,241.73,2.7]
[1732741204861,7.6666,241.87,241.73,4.7652]
[1732741205054,7.6666,241.87,241.73,2.7]
[1732741205652,15.72148784,241.8,241.7,2.7]
[1732741205962,15.72148784,241.8,241.62,2.5877]
[1732741205963,2.0651,241.74,241.68,2.7]
[1732741206259,15.72148784,241.8,241.67,2.7]
[1732741207158,2.7,241.84,241.67,2.7]
[1732741207159,18.42148784,241.84,241.67,2.7]
[1732741207360,15.72148784,241.84,241.67,2.7]
[1732741207559,7.6666,241.87,241.67,2.7]
[1732741207760,7.6666,241.87,241.73,2.0652]
[1732741207761,2.0645,241.81,241.73,2.0652]
[1732741207956,2.0645,241.81,241.67,2.7]
[1732741208152,7.6666,241.87,241.64,15.72148784]
[1732741208357,7.6666,241.87,241.68,15.72148784]
[1732741208555,7.6666,241.87,241.65,2.7]
[1732741208556,15.72148784,241.83,241.65,2.7]
[1732741208857,2.065,241.76,241.65,2.7]
[1732741209256,2.0656,241.69,241.61,2.0662]
[1732741209558,15.72148784,241.74,241.59,2.88]
[1732741209759,2.5249,241.73,241.59,2.88]
[1732741210061,2.0656,241.69,241.62,2.0661]
[1732741212765,2.0656,241.68,241.62,2.0661]
[1732741212963,2.5249,241.73,241.59,2.88]
[1732741213157,2.5249,241.73,241.63,2.066]
[1732741213365,2.5249,241.73,241.59,2.88]
[1732741213567,2.5249,241.73,241.64,2.0659]
[1732741213762,2.5249,241.73,241.59,2.88]
[1732741215665,2.5249,241.73,241.51,2.72678296]
[1732741215860,15.72148784,241.7,241.52,2.88]
[1732741216263,15.72148784,241.7,241.55,2.0667]
[1732741216570,15.72148784,241.7,241.52,2.88]
[1732741216758,15.72148784,241.7,241.54,2.0668]
[1732741217067,2.5249,241.73,241.52,2.88]
[1732741217267,2.0655,241.7,241.63,2.066]
[1732741217665,2.5249,241.73,241.62,2.88]
[1732741219471,2.5249,241.73,241.65,2.0659]
[1732741221070,2.5249,241.73,241.62,2.88]
[1732741221471,4.5901,241.73,241.64,2.0659]
[1732741221665,4.5901,241.73,241.62,2.88]
[1732741222071,2.0654,241.7,241.63,2.066]
[1732741222373,2.5249,241.73,241.62,2.88]
[1732741222868,2.0657,241.67,241.59,2.88]
[1732741223075,2.5249,241.73,241.59,2.88]
[1732741223267,15.72148784,241.67,241.53,2.88]
[1732741223469,15.72148784,241.63,241.46,2.72664174]
[1732741223672,15.72148784,241.59,241.42,2.88]
[1732741223871,15.72148784,241.59,241.43,2.88]
[1732741224067,2.0668,241.54,241.46,2.0674]
[1732741224576,2.0668,241.54,241.47,2.0674]
[1732741225670,15.72148784,241.59,241.38,15.72148784]
[1732741225872,15.72148784,241.55,241.39,2.88]
[1732741226072,15.72148784,241.55,241.4,2.88]
[1732741226674,2.0671,241.51,241.42,2.0677]
[1732741226971,15.72148784,241.59,241.43,2.88]
[1732741228571,2.0665,241.58,241.5,2.0671]
[1732741228773,15.72148784,241.59,241.43,2.88]
[1732741228973,9.565,241.62,241.55,2.0667]
[1732741229167,2.4148,241.62,241.55,2.88]
[1732741229370,15.72148784,241.71,241.55,2.88]
[1732741229565,2.0657,241.68,241.55,2.88]
[1732741229766,2.6374,241.7,241.55,2.88]
[1732741230172,15.72148784,241.66,241.55,2.88]
[1732741230675,2.0659,241.64,241.56,2.0666]
[1732741231083,2.0659,241.64,241.45,4.22310114]
[1732741231084,15.72148784,241.62,241.45,2.72921433]
[1732741231371,2.5075,241.61,241.46,3.08]
[1732741231676,2.0664,241.59,241.51,2.067]
[1732741231870,2.5075,241.61,241.46,3.08]
[1732741232277,2.5075,241.61,241.54,2.0668]
[1732741232575,2.5075,241.61,241.46,3.08]
[1732741233478,4.5737,241.61,241.55,2.0667]
[1732741233684,2.5075,241.61,241.54,3.08]
[1732741233977,2.0664,241.59,241.54,2.0668]
[1732741234180,2.0664,241.59,241.53,3.08]
[1732741234771,2.0663,241.6,241.54,2.0668]
[1732741235082,2.5075,241.61,241.53,3.08]
[1732741236278,2.4271,241.63,241.53,3.08]
[1732741236481,2.0657,241.68,241.53,3.08]
[1732741236673,2.4999,241.69,241.53,3.08]
[1732741237080,2.0658,241.67,241.57,2.0665]
[1732741237284,2.4999,241.69,241.53,3.08]
[1732741237781,2.0657,241.67,241.61,2.0661]
[1732741238180,2.0657,241.67,241.6,3.08]
[1732741238380,2.4999,241.69,241.6,3.08]
[1732741238886,2.0654,241.7,241.65,2.0658]
[1732741239484,2.4531,241.71,241.6,3.08]
[1732741239988,4.5185,241.71,241.63,2.066]
[1732741240178,4.5185,241.71,241.6,3.08]
[1732741240179,2.4531,241.71,241.6,3.08]
[1732741240583,2.4531,241.71,241.66,2.0657]
[1732741240784,2.4531,241.71,241.6,3.08]
[1732741240984,18.17458784,241.71,241.6,3.08]
[1732741241185,18.17458784,241.71,241.6,5.1462]
[1732741241186,2.0659,241.65,241.6,5.1462]
[1732741241384,15.72148784,241.67,241.55,3.08]
[1732741241587,15.72148784,241.63,241.54,3.08]
[1732741241787,2.5115,241.64,241.53,3.08]
[1732741241788,2.5419,241.62,241.53,3.08]
[1732741241982,2.5419,241.7,241.54,3.08]
[1732741242181,2.5419,241.7,241.62,2.0661]
[1732741242182,2.0657,241.68,241.62,2.0661]
[1732741242386,2.5419,241.7,241.62,2.0661]
[1732741243278,2.5419,241.7,241.55,3.08]
[1732741243979,2.0657,241.68,241.55,3.08]
[1732741244589,2.0657,241.68,241.62,2.0661]
[1732741245288,2.5419,241.7,241.55,3.08]
[1732741245788,4.6073,241.7,241.63,2.066]
[1732741245988,2.5419,241.7,241.62,3.08]
[1732741246391,2.0655,241.69,241.62,5.1461]
[1732741247686,2.4531,241.71,241.62,3.08]
[1732741248484,2.4531,241.71,241.67,2.0657]
[1732741248791,2.5115,241.74,241.67,2.0657]
[1732741250785,2.5516,241.78,241.62,18.80148784]
[1732741251384,2.5516,241.78,241.73,2.0652]
[1732741251584,2.5516,241.78,241.74,3.08]
[1732741251989,2.0645,241.82,241.75,2.065]
[1732741252190,2.0645,241.82,241.74,3.08]
[1732741253088,2.0645,241.82,241.74,5.1451]
[1732741253686,2.0643,241.84,241.75,2.065]
[1732741254393,2.0643,241.83,241.74,5.1451]
[1732741254896,2.065,241.76,241.59,2.74145838]
[1732741255191,15.72148784,241.77,241.6,3.08]
[1732741255397,2.4959,241.76,241.6,3.08]
[1732741255795,2.4959,241.76,241.68,2.0656]
[1732741255991,2.4959,241.76,241.67,3.08]
[1732741256191,4.5609,241.76,241.67,3.08]
[1732741256392,2.4959,241.76,241.67,3.08]
[1732741256997,2.4959,241.76,241.7,2.0654]
[1732741257194,2.4959,241.76,241.67,3.08]
[1732741258199,2.4959,241.76,241.7,2.0654]
[1732741259096,20.70718784,241.85,241.67,3.08]
[1732741259293,23.18758784,241.85,241.67,3.08]
[1732741259690,2.0645,241.81,241.74,2.0651]
[1732741259896,15.72148784,241.8,241.67,3.08]
[1732741260899,15.72148784,241.8,241.67,5.1456]